fUSD/lending_fUSD_20260121
["ID","MTS","AMOUNT","RATE_DAILY","PERIOD"]
[402956835,1769017858501,-500.0,0.00041095,2]
[402956836,1769017858510,-500.0,0.00041095,2]
[402956837,1769017858519,-500.0,0.00041095,2]
[402956838,1769017858528,-500.0,0.00041095,2]
[402956839,1769017858537,-500.0,0.00041095,2]
[402956840,1769017858547,-500.0,0.00041095,2]
[402956841,1769017858556,-230.7166714,0.00041095,2]
[402956842,1769017858566,-773.49,0.00041095,2]
[402956843,1769017858575,-773.49,0.00041095,2]
[402956844,1769017858584,-773.49,0.00041095,2]
[402956845,1769017858593,-773.49,0.00041095,2]
[402956846,1769017858603,-773.49,0.00041095,2]
[402956847,1769017858612,-773.49,0.00041095,2]
[402956848,1769017858622,-773.49,0.00041095,2]
[402956849,1769017858631,-773.49,0.00041095,2]
[402956850,1769017858640,-773.49,0.00041095,2]
[402956851,1769017858649,-773.49,0.00041095,2]
[402956852,1769017858659,-773.49,0.00041095,2]
[402956853,1769017858668,-773.49,0.00041095,2]
[402956854,1769017858677,-773.49,0.00041095,2]
[402956855,1769017858686,-773.49,0.00041095,2]
[402956856,1769017858695,-773.49,0.00041095,2]
[402956857,1769017858705,-773.49,0.00041095,2]
[402956858,1769017858714,-773.49,0.00041095,2]
[402956859,1769017858723,-773.49,0.00041095,2]
[402956860,1769017858733,-773.49,0.00041095,2]
[402956861,1769017858742,-773.49,0.00041095,2]
[402956862,1769017858751,-773.49,0.00041095,2]
[402956863,1769017858760,-773.49,0.00041095,2]
[402956864,1769017858769,-773.49,0.00041095,2]
[402956865,1769017858778,-773.67,0.00041095,2]
[402956866,1769017858787,-683.51,0.00041096,120]
[402956867,1769017858797,-500.0,0.00041096,10]
[402956868,1769017858806,-264.53,0.00041096,120]
[402956869,1769017858815,-222.58,0.00041096,120]
[402956870,1769017858824,-250.645554,0.00041096,120]
[402956871,1769017858834,-250.645554,0.00041096,120]
[402956872,1769017858846,-250.645554,0.00041096,120]
[402956873,1769017858856,-250.645554,0.00041096,120]
[402956874,1769017858865,-4000.0,0.00041096,120]
[402956875,1769017858874,-160.0,0.000411,120]
[402956876,1769017858885,-151.83,0.00041152,120]
[402956877,1769017858894,-156.71,0.000412,14]
[402956878,1769017858903,-153.0,0.000412,120]
[402956879,1769017858913,-836.0,0.00041223,11]
[402956880,1769017858922,-185.78872914,0.0004123,98]
[402956881,1769017858932,-500.0,0.00041232,120]
[402956882,1769017858942,-151.83,0.00041252,120]
[402956883,1769017858951,-200.0,0.00041305,120]
[402956884,1769017858962,-151.8813268,0.00041352,120]
[402956885,1769017858972,-500.0,0.00041369,120]
[402956886,1769017858981,-163.0,0.00041376,11]
[402956887,1769017858991,-163.0,0.0004145,11]
[402956888,1769017859000,-300.212152,0.00041503,106]
[402956889,1769017859010,-500.0,0.00041506,120]
[402956890,1769017859019,-500.0,0.00041643,120]
[402956891,1769017859028,-797.0,0.00041644,120]
[402956892,1769017859039,-501.33768202,0.00041644,10]
[402956893,1769017859049,-835.0,0.00041695,11]
[402956894,1769017859058,-160.0,0.000417,120]
[402956895,1769017859067,-150.0,0.00041756,30]
[402956896,1769017859077,-150.0,0.00041756,30]
[402956897,1769017859087,-150.0,0.00041756,30]
[402956898,1769017859098,-150.0,0.00041756,30]
[402956899,1769017859108,-150.0,0.00041756,30]
[402956900,1769017859119,-150.0,0.00041756,30]
[402956901,1769017859131,-150.0,0.00041756,30]
[402956902,1769017859142,-150.0,0.00041756,30]
[402956903,1769017859152,-150.0,0.00041756,30]
[402956904,1769017859161,-500.78290421,0.0004178,120]
[402956905,1769017859170,-2945.0,0.00041784,30]
[402956906,1769017859180,-153.0,0.000418,120]
[402956907,1769017859190,-150.0,0.00041862,2]
[402956908,1769017859199,-89843.44501773,0.000419,14]
[402956909,1769017859209,-30342.28295892,0.000419,120]
[402956910,1769017859218,-1014.76659025,0.000419,120]
[402956911,1769017859227,-1014.76659019,0.000419,120]
[402956912,1769017859237,-1014.76659019,0.000419,120]
[402956913,1769017859246,-1014.76659019,0.000419,120]
[402956914,1769017859256,-1014.76659019,0.000419,120]
[402956915,1769017859265,-1014.76659019,0.000419,120]
[402956916,1769017859274,-1014.76659019,0.000419,120]
[402956917,1769017859283,-1014.76659019,0.000419,120]
[402956918,1769017859292,-1014.76659019,0.000419,120]
[402956919,1769017859301,-1014.76659019,0.000419,120]
[402956920,1769017859311,-1014.76659019,0.000419,120]
[402956921,1769017859320,-1014.76659019,0.000419,120]
[402956922,1769017859329,-1014.76659019,0.000419,120]
[402956923,1769017859339,-1014.76659019,0.000419,120]
[402956924,1769017859348,-1014.76659019,0.000419,120]
[402956925,1769017859358,-1014.76659019,0.000419,120]
[402956926,1769017859367,-1014.76659019,0.000419,120]
[402956927,1769017859376,-1014.76659019,0.000419,120]
[402956928,1769017859386,-1014.76659019,0.000419,120]
[402956929,1769017859396,-1014.76659019,0.000419,120]
[402956930,1769017859406,-1240.5,0.00041976,120]
[402956931,1769017859416,-500.0,0.00041999,30]
[402956932,1769017859425,-3120.0,0.00042,15]
[402956933,1769017859436,-60544.190224,0.00042,20]
[402956934,1769017859446,-50024.539771,0.00042,20]
[402956935,1769017859455,-354.19,0.00042,120]
[402956936,1769017859465,-500.0,0.00042,120]
[402956937,1769017859475,-400.0,0.00042,120]
[402956938,1769017859485,-500.0,0.00042,120]
[402956939,1769017859495,-150.0,0.00042,60]
[402956940,1769017859505,-150.0,0.00042,60]
[402956941,1769017859515,-150.0,0.00042,60]
[402956942,1769017859525,-150.0,0.00042,60]
[402956943,1769017859535,-150.0,0.00042,60]
[402956944,1769017859544,-150.0,0.00042,60]
[402956945,1769017859554,-150.0,0.00042,60]
[402956946,1769017859564,-150.0,0.00042,60]
[402956947,1769017859574,-150.0,0.00042,60]
[402956948,1769017859583,-192.8217161,0.00042,30]
[402956949,1769017859593,-200.0,0.00042,120]
[402956950,1769017859603,-1308.0,0.00042,120]
[402956951,1769017859613,-3957.79351861,0.00042,30]
[402956952,1769017859623,-500.0,0.00042,120]
[402956953,1769017859632,-5000.0,0.00042,120]
[402956954,1769017859642,-232.96237352,0.00042,2]
[402956955,1769017859652,-7417.70660789,0.00042,120]
[402956956,1769017859662,-264.0,0.00042,30]
[402956957,1769017859671,-253.0,0.00042,37]
[402956958,1769017859682,-900.0,0.00042059,15]
[402956959,1769017859691,-900.0,0.00042059,15]
[402956960,1769017859700,-900.0,0.00042059,15]
[402956961,1769017859710,-900.0,0.00042059,15]
[402956962,1769017859719,-900.0,0.00042059,15]
[402956963,1769017859728,-900.0,0.00042059,15]
[402956964,1769017859738,-900.0,0.00042059,15]
[402956965,1769017859748,-900.0,0.00042059,15]
[402956966,1769017859757,-900.0,0.00042059,15]
[402956967,1769017859767,-900.0,0.00042059,15]
[402956968,1769017859776,-836.0,0.00042103,16]
[402956969,1769017859786,-163.0,0.00042103,16]
[402956970,1769017859795,-836.0,0.00042123,16]
[402956971,1769017859805,-869.0,0.00042123,16]
[402956972,1769017859815,-150.0,0.00042167,120]
[402956973,1769017859824,-277.1903785,0.00042181,14]
[402956974,1769017859834,-703.45,0.00042192,120]
[402956975,1769017859850,-151.0,0.00042192,120]
[402956976,1769017859860,-151.0,0.00042192,120]
[402956977,1769017859870,-151.0,0.00042192,120]
[402956978,1769017859881,-200.17114968,0.00042192,120]
[402956979,1769017859891,-160.0,0.000422,120]
[402956980,1769017859901,-2945.0,0.00042215,30]
[402956981,1769017859911,-156.71,0.000424,14]
[402956982,1769017859921,-259.8,0.000424,120]
[402956983,1769017859931,-153.0,0.000424,120]
[402956984,1769017859941,-200.0,0.000424,120]
[402956985,1769017859950,-150.0,0.000424,120]
[402956986,1769017859960,-150.0,0.000424,120]
[402956987,1769017859969,-150.0,0.000424,120]
[402956988,1769017859979,-300.0,0.000424,120]
[402956989,1769017859988,-185.78872914,0.00042421,106]
[402956990,1769017859998,-150.0,0.00042466,120]
[402956991,1769017860010,-415.02855123,0.000425,31]
[402956992,1769017860019,-27779.82705815,0.000425,10]
[402956993,1769017860028,-851.82141203,0.000425,7]
[402956994,1769017860038,-387.64253103,0.000425,30]
[402956995,1769017860048,-2021.3915,0.000425,120]
[402956996,1769017860058,-500.0,0.000425,120]
[402956997,1769017860067,-150.0,0.00042521,120]
[402956998,1769017860077,-172.80343081,0.00042576,120]
[402956999,1769017860086,-150.0,0.00042578,30]
[402957000,1769017860096,-150.0,0.00042578,30]
[402957001,1769017860105,-150.0,0.00042578,30]
[402957002,1769017860115,-150.0,0.00042578,30]
[402957003,1769017860125,-300.0,0.00042578,30]
[402957004,1769017860134,-150.0,0.00042578,30]
[402957005,1769017860144,-150.0,0.00042578,30]
[402957006,1769017860154,-150.0,0.00042578,30]
[402957007,1769017860163,-150.0,0.00042578,30]
[402957008,1769017860174,-150.0,0.00042578,30]
[402957009,1769017860186,-700.0,0.000426,15]
[402957010,1769017860196,-150.0,0.00042605,120]
[402957011,1769017860206,-158.634711,0.0004263,120]
[402957012,1769017860216,-158.634711,0.0004263,120]
[402957013,1769017860226,-158.634711,0.0004263,120]
[402957014,1769017860236,-158.634711,0.0004263,120]
[402957015,1769017860246,-2945.0,0.00042645,30]
[402957016,1769017860256,-155.25,0.000427,2]
[402957017,1769017860266,-50019.3721928,0.000427,30]
[402957018,1769017860276,-2000.0,0.000427,2]
[402957019,1769017860286,-700.0,0.000427,15]
[402957020,1769017860295,-600.0,0.0004274,120]
[402957021,1769017860305,-221.69937281,0.00042791,10]
[402957022,1769017860315,-160.0,0.000428,120]
[402957023,1769017860325,-150.0,0.000428,120]
[402957024,1769017860335,-150.0,0.000428,120]
[402957025,1769017860344,-150.0,0.000428,120]
[402957026,1769017860354,-150.0,0.000428,120]
[402957027,1769017860364,-150.0,0.000428,120]
[402957028,1769017860373,-150.0,0.000428,120]
[402957029,1769017860384,-150.0,0.000428,120]
[402957030,1769017860394,-150.0,0.000428,120]
[402957031,1769017860403,-150.0,0.000428,120]
[402957032,1769017860413,-150.0,0.000428,120]
[402957033,1769017860422,-150.0,0.000428,60]
[402957034,1769017860433,-150.0,0.000428,60]
[402957035,1769017860443,-150.0,0.000428,60]
[402957036,1769017860453,-150.0,0.000428,60]
[402957037,1769017860463,-150.0,0.000428,60]
[402957038,1769017860473,-150.0,0.000428,60]
[402957039,1769017860482,-150.0,0.000428,60]
[402957040,1769017860492,-150.0,0.000428,60]
[402957041,1769017860502,-1000.0,0.000428,120]
[402957042,1769017860512,-1237.0,0.000428,15]
[402957043,1769017860523,-1359.1,0.0004283,120]
[402957044,1769017860532,-538.63,0.00042838,30]
[402957045,1769017860542,-329.91342297,0.0004285,9]
[402957046,1769017860551,-1761.14008035,0.00042881,30]
[402957047,1769017860562,-261.62304542,0.00042881,30]
[402957048,1769017860571,-5377.35319464,0.00042881,2]
[402957049,1769017860581,-3764.14723624,0.00042881,4]
[402957050,1769017860591,-63993.23322076,0.00042881,2]
[402957051,1769017860602,-13447.56323221,0.00042881,4]
[402957052,1769017860611,-4201.31215535,0.00042881,2]
[402957053,1769017860621,-151.0,0.00042881,120]
[402957054,1769017860631,-151.0,0.00042881,120]
[402957055,1769017860641,-151.0,0.00042881,120]
[402957056,1769017860651,-151.0,0.00042881,120]
[402957057,1769017860661,-151.0,0.00042881,120]
[402957058,1769017860671,-273.864674,0.00042881,60]
[402957059,1769017860680,-151.0,0.00042881,120]
[402957060,1769017860690,-151.0,0.00042881,120]
[402957061,1769017860700,-151.0,0.00042881,120]
[402957062,1769017860709,-257.555882,0.00042881,120]
[402957063,1769017860719,-152.812964,0.00042881,120]
[402957064,1769017860728,-250.645554,0.00042881,120]
[402957065,1769017860737,-250.645554,0.00042881,120]
[402957066,1769017860747,-250.645554,0.00042881,120]
[402957067,1769017860756,-250.645554,0.00042881,120]
[402957068,1769017860766,-157.410192,0.00042881,120]
[402957069,1769017860776,-157.410192,0.00042881,120]
[402957070,1769017860785,-157.410192,0.00042881,120]
[402957071,1769017860795,-157.410192,0.00042881,120]
[402957072,1769017860805,-316.939799,0.00042881,30]
[402957073,1769017860814,-316.939799,0.00042881,30]
[402957074,1769017860823,-316.939799,0.00042881,30]
[402957075,1769017860833,-316.939799,0.00042881,30]
[402957076,1769017860846,-151.0,0.00042881,15]
[402957077,1769017860855,-151.0,0.00042881,120]
[402957078,1769017860865,-151.0,0.00042881,15]
[402957079,1769017860875,-151.0,0.00042881,120]
[402957080,1769017860886,-255.879094,0.00042881,120]
[402957081,1769017860896,-248.953339,0.00042881,120]
[402957082,1769017860906,-255.879094,0.00042881,120]
[402957083,1769017860916,-248.953339,0.00042881,120]
[402957084,1769017860925,-255.879094,0.00042881,120]
[402957085,1769017860935,-248.953339,0.00042881,120]
[402957086,1769017860945,-255.879094,0.00042881,120]
[402957087,1769017860954,-248.953339,0.00042881,120]
[402957088,1769017860965,-151.0,0.00042881,120]
[402957089,1769017860974,-176.796694,0.00042881,120]
[402957090,1769017860985,-151.0,0.00042881,120]
[402957091,1769017860994,-151.0,0.00042881,120]
[402957092,1769017861004,-151.0,0.00042881,120]
[402957093,1769017861014,-158.280415,0.00042881,120]
[402957094,1769017861023,-1643.940831,0.00042881,120]
[402957095,1769017861033,-158.280415,0.00042881,120]
[402957096,1769017861043,-1643.940831,0.00042881,120]
[402957097,1769017861052,-158.280415,0.00042881,120]
[402957098,1769017861061,-1643.940831,0.00042881,120]
[402957099,1769017861070,-158.280415,0.00042881,120]
[402957100,1769017861081,-1643.940831,0.00042881,120]
[402957101,1769017861092,-1793.393491,0.00042881,28]
[402957102,1769017861102,-1793.393491,0.00042881,28]
[402957103,1769017861112,-1793.393491,0.00042881,28]
[402957104,1769017861122,-1793.393491,0.00042881,28]
[402957105,1769017861131,-315.613242,0.00042881,7]
[402957106,1769017861141,-151.0,0.00042881,120]
[402957107,1769017861150,-315.613242,0.00042881,7]
[402957108,1769017861160,-315.613242,0.00042881,7]
[402957109,1769017861169,-315.613242,0.00042881,7]
[402957110,1769017861179,-158.634711,0.00042881,120]
[402957111,1769017861188,-158.634711,0.00042881,120]
[402957112,1769017861198,-158.634711,0.00042881,120]
[402957113,1769017861207,-158.634711,0.00042881,120]
[402957114,1769017861217,-151.0,0.00042881,120]
[402957115,1769017861228,-233.544946,0.00042881,120]
[402957116,1769017861237,-233.544946,0.00042881,120]
[402957117,1769017861247,-151.0,0.00042881,120]
[402957118,1769017861257,-233.544946,0.00042881,120]
[402957119,1769017861266,-151.0,0.00042881,120]
[402957120,1769017861276,-151.0,0.00042881,120]
[402957121,1769017861286,-233.544946,0.00042881,120]
[402957122,1769017861295,-500.0,0.00042899,30]
[402957123,1769017861304,-500.0,0.00042899,30]
[402957124,1769017861314,-389795.18023781,0.000429,15]
[402957125,1769017861323,-13700.0,0.000429,5]
[402957126,1769017861332,-243.3320625,0.000429,120]
[402957127,1769017861341,-151.0,0.00042925,120]
[402957128,1769017861351,-151.0,0.00042925,120]
[402957129,1769017861360,-151.0,0.00042925,120]
[402957130,1769017861370,-202.25689,0.00042925,120]
[402957131,1769017861379,-151.0,0.00042925,120]
[402957132,1769017861388,-151.0,0.00042925,120]
[402957133,1769017861398,-151.0,0.00042925,120]
[402957134,1769017861408,-151.0,0.00042925,120]
[402957135,1769017861418,-250.645554,0.00042925,120]
[402957136,1769017861430,-250.645554,0.00042925,120]
[402957137,1769017861440,-250.645554,0.00042925,120]
[402957138,1769017861450,-250.645554,0.00042925,120]
[402957139,1769017861461,-210.0,0.0004295,30]
[402957140,1769017861472,-500.0,0.00042953,30]
[402957141,1769017861482,-500.0,0.00042953,30]
[402957142,1769017861492,-500.0,0.00042953,30]
[402957143,1769017861502,-500.0,0.00042953,30]
[402957144,1769017861511,-500.0,0.00042953,30]
[402957145,1769017861521,-206.5350797,0.00042953,30]
[402957146,1769017861531,-150.0,0.00042961,120]
[402957147,1769017861540,-159.131376,0.00042962,120]
[402957148,1769017861551,-157.410192,0.00042962,120]
[402957149,1769017861849,-157.410192,0.00042962,120]
[402957150,1769017861863,-157.410192,0.00042962,120]
[402957151,1769017861873,-157.410192,0.00042962,120]
[402957152,1769017861885,-316.939799,0.00042962,30]
[402957153,1769017861894,-316.939799,0.00042962,30]
[402957154,1769017861903,-316.939799,0.00042962,30]
[402957155,1769017861913,-316.939799,0.00042962,30]
[402957156,1769017861924,-151.0,0.00042962,15]
[402957157,1769017861935,-151.0,0.00042962,120]
[402957158,1769017861945,-151.0,0.00042962,15]
[402957159,1769017861954,-151.0,0.00042962,120]
[402957160,1769017861963,-255.879094,0.00042962,120]
[402957161,1769017861973,-248.953339,0.00042962,120]
[402957162,1769017861982,-255.879094,0.00042962,120]
[402957163,1769017861992,-248.953339,0.00042962,120]
[402957164,1769017862001,-255.879094,0.00042962,120]
[402957165,1769017862011,-248.953339,0.00042962,120]
[402957166,1769017862020,-255.879094,0.00042962,120]
[402957167,1769017862029,-248.953339,0.00042962,120]
[402957168,1769017862039,-151.0,0.00042962,120]
[402957169,1769017862049,-151.0,0.00042962,120]
[402957170,1769017862060,-151.0,0.00042962,120]
[402957171,1769017862071,-151.0,0.00042968,120]
[402957172,1769017862080,-151.0,0.00042968,120]
[402957173,1769017862089,-151.0,0.00042968,120]
[402957174,1769017862099,-151.0,0.00042971,120]
[402957175,1769017862108,-158.280415,0.00042971,120]
[402957176,1769017862117,-1643.940831,0.00042971,120]
[402957177,1769017862126,-158.280415,0.00042971,120]
[402957178,1769017862135,-1643.940831,0.00042971,120]
[402957179,1769017862145,-158.280415,0.00042971,120]
[402957180,1769017862154,-1643.940831,0.00042971,120]
[402957181,1769017862164,-158.280415,0.00042971,120]
[402957182,1769017862173,-1643.940831,0.00042971,120]
[402957183,1769017862185,-1793.393491,0.00042971,28]
[402957184,1769017862194,-1793.393491,0.00042971,28]
[402957185,1769017862203,-1793.393491,0.00042971,28]
[402957186,1769017862213,-1793.393491,0.00042971,28]
[402957187,1769017862222,-315.613242,0.00042971,7]
[402957188,1769017862231,-151.0,0.00042971,120]
[402957189,1769017862240,-315.613242,0.00042971,7]
[402957190,1769017862250,-315.613242,0.00042971,7]
[402957191,1769017862259,-315.613242,0.00042971,7]
[402957192,1769017862269,-158.634711,0.00042971,120]
[402957193,1769017862279,-158.634711,0.00042971,120]
[402957194,1769017862288,-158.634711,0.00042971,120]
[402957195,1769017862297,-158.634711,0.00042971,120]
[402957196,1769017862307,-151.0,0.00042971,120]
[402957197,1769017862316,-233.544946,0.00042971,120]
[402957198,1769017862325,-233.544946,0.00042971,120]
[402957199,1769017862335,-151.0,0.00042971,120]
[402957200,1769017862344,-233.544946,0.00042971,120]
[402957201,1769017862353,-151.0,0.00042971,120]
[402957202,1769017862373,-151.0,0.00042971,120]
[402957203,1769017862383,-233.544946,0.00042971,120]
[402957204,1769017862393,-3872875.24903667,0.00042971,30]
[402957205,1769017862887,-263.6329972,0.00042971,30]
[402957206,1769017862906,-1000.0,0.00017738,2]
[402957207,1769017862917,-793.79511815,0.00042971,30]
[402957208,1769017864503,-1.7e-07,0.00017768,2]
[402957209,1769017864898,-999.99999983,0.00017768,2]
[402957210,1769017864911,-200.069545,0.00042881,120]
[402957211,1769017864921,-2538.40733796,0.00042971,30]
[402957212,1769017864935,-453.16650001,0.00042971,30]
[402957213,1769017865057,-3001.63803875,0.00042971,30]
[402957214,1769017865074,-4271.10164621,0.00042971,30]
[402957215,1769017867141,-151.0,0.00016689,2]
[402957216,1769017867151,-250.0,0.00017609,2]
[402957217,1769017867161,-313.19900082,0.00017924,2]
[402957218,1769017867467,-1417.67063,0.00017924,2]
[402957219,1769017867480,-269.13036918,0.00017924,2]
[402957220,1769017867490,-1304.15406013,0.00017924,2]
[402957221,1769017867622,7872.32413408,0.00015936,2]
[402957222,1769017867652,10000.01,0.00015936,2]
[402957223,1769017867686,10000.01,0.00015936,2]
[402957224,1769017867715,10000.01,0.00015936,2]
[402957225,1769017867748,10000.01,0.00015936,2]
[402957226,1769017867779,10000.01,0.00015936,2]
[402957227,1769017867810,10000.01,0.00015936,2]
[402957228,1769017867843,10000.01,0.00015936,2]
[402957229,1769017867873,10000.01,0.00015936,2]
[402957230,1769017867907,58414.94646248,0.00015936,2]
[402957231,1769017867945,726713.28247701,0.00015936,2]
[402957232,1769017867987,126999.36692643,0.00015936,2]
[402957233,1769017868789,-153.18312806,0.000179,2]
[402957234,1769017868801,-695.84593987,0.00017924,2]
[402957235,1769017868811,-2000.0,0.00017924,2]
[402957236,1769017868822,-1000.0,0.0001793,2]
[402957237,1769017868831,-205.82534915,0.0001793,2]
[402957238,1769017869268,-794.17465085,0.0001793,2]
[402957239,1769017869278,-138.28083435,0.0001793,2]
[402957240,1769017869292,-861.71916565,0.0001793,2]
[402957241,1769017869303,-185.08807957,0.00022262,2]
[402957242,1769017869313,-185.08807957,0.00022393,2]
[402957243,1769017869323,-200.069545,0.00038356,120]
[402957244,1769017869334,-384.737636,0.00038356,120]
[402957245,1769017869344,-184.61841371,0.00038356,120]
[402957246,1769017869356,-15.45113129,0.00038356,120]
[402957247,1769017869367,-384.737636,0.00038356,120]
[402957248,1769017869378,-150.32653436,0.00038356,120]
[402957249,1769017869393,-49.74301064,0.00038356,120]
[402957250,1769017869402,-384.737636,0.00038356,120]
[402957251,1769017869412,-300.0,0.00038874,2]
[402957252,1769017869422,-16.62980946,0.00038874,2]
[402957253,1769017869434,-388.77136427,0.00038874,2]
[402957254,1769017869444,-300.0,0.00038874,2]
[402957255,1769017869454,-200.069545,0.00042881,120]
[402957256,1769017869465,-384.737636,0.00042881,120]
[402957257,1769017869476,-200.069545,0.00042881,120]
[402957258,1769017869485,-384.737636,0.00042881,120]
[402957259,1769017869495,-200.069545,0.00042881,120]
[402957260,1769017869505,-384.737636,0.00042881,120]
[402957261,1769017869516,-200.069545,0.00042971,120]
[402957262,1769017869527,-200.069545,0.00042971,120]
[402957263,1769017869537,-384.737636,0.00042971,120]
[402957264,1769017869547,-200.069545,0.00042971,120]
[402957265,1769017869557,-384.737636,0.00042971,120]
[402957266,1769017869567,-1468.50318573,0.00042971,30]
[402957267,1769017870010,-936.62352971,0.00042971,30]
[402957268,1769017870047,-400.0,0.00019262,2]
[402957269,1769017874279,-1424.07629669,0.00019262,2]
[402957270,1769017874681,-4739.92370331,0.00019262,2]
[402957271,1769017874691,-384.737636,0.00042971,120]
[402957272,1769017874701,-1476.57367909,0.00042971,30]
[402957273,1769017874733,-10579.19803499,0.00042971,30]
[402957274,1769017874744,-407.00385593,0.00042971,30]
[402957275,1769017874984,-2988.33766693,0.00042971,30]
[402957276,1769017875002,-521.9457999,0.00042971,30]
[402957277,1769017876435,-169.7257026,0.00042971,30]
[402957278,1769017876446,-935.57953024,0.00042971,30]
[402957280,1769017880920,1000.0,0.00015936,2]
[402957282,1769017884130,2282.2358,0.00015936,2]
[402957283,1769017884323,300.0,0.00015935,2]
[402957284,1769017887466,-250.0,0.00015996,2]
[402957285,1769017887633,9500.01,0.00015936,2]
[402957286,1769017887656,10000.01,0.00015936,2]
[402957287,1769017887679,4403.3202,0.00015936,2]
[402957288,1769017891631,500.0,0.00016035,2]
[402957289,1769017891687,500.0,0.00016035,2]
[402957290,1769017891742,397.55338801,0.00016035,2]
[402957291,1769017902151,265.61427296,0.00016035,2]
[402957292,1769017917492,192.95234673,0.00016035,2]
[402957293,1769017919998,1569.4315,0.00015936,2]
[402957294,1769017929857,-2671.1382923,0.00016056,2]
[402957295,1769017929956,-10000.01,0.00016056,2]
[402957296,1769017930078,-2671.1382923,0.00016056,2]
[402957297,1769017930123,-4657.7334154,0.00016056,2]
[402957300,1769017965744,194.0745,0.00015936,2]
[402957301,1769017977004,171.86,0.00015767,2]
[402957302,1769017997462,9634.0755,0.00015936,2]
[402957303,1769017997486,10000.01,0.00015936,2]
[402957304,1769017997509,10000.01,0.00015936,2]
[402957305,1769017997532,10000.01,0.00015936,2]
[402957306,1769017997555,10000.01,0.00015936,2]
[402957307,1769017997579,10000.01,0.00015936,2]
[402957308,1769017997603,10000.01,0.00015936,2]
[402957309,1769017997627,10000.01,0.00015936,2]
[402957310,1769017997651,10000.01,0.00015936,2]
[402957311,1769017997674,10000.01,0.00015936,2]
[402957312,1769017997708,900365.8345,0.00015936,2]
[402957313,1769018011928,1000.0,0.00015936,2]
[402957318,1769018125805,9000.01,0.00015936,2]
[402957319,1769018125833,10000.01,0.00015936,2]
[402957320,1769018125859,10000.01,0.00015936,2]
[402957321,1769018125885,10000.01,0.00015936,2]
[402957322,1769018125914,10000.01,0.00015936,2]
[402957323,1769018125942,10000.01,0.00015936,2]
[402957324,1769018125968,10000.01,0.00015936,2]
[402957325,1769018125998,10000.01,0.00015936,2]
[402957326,1769018126024,10000.01,0.00015936,2]
[402957327,1769018126050,10000.01,0.00015936,2]
[402957328,1769018126086,900999.9,0.00015936,2]
[402957335,1769018355425,-1000.0,0.00021917,30]
[402957336,1769018355452,-150.00007152,0.00025329,32]
[402957337,1769018355480,-150.00007152,0.00026589,36]
[402957338,1769018355507,-278.95,0.00027397,120]
[402957339,1769018355532,-278.95,0.00027452,120]
[402957340,1769018355561,-150.00007152,0.0002785,40]
[402957341,1769018355588,-278.95,0.00028767,120]
[402957342,1769018355620,-150.00007152,0.0002911,45]
[402957343,1769018355646,-150.00007152,0.00030371,49]
[402957344,1769018355672,-150.00007152,0.00031631,54]
[402957345,1769018355699,-166.66,0.00032101,30]
[402957346,1769018355725,-166.66,0.00032777,30]
[402957347,1769018355751,-502.98231063,0.00032876,30]
[402957348,1769018355778,-150.00007152,0.00032892,58]